fUST/lending_fUST_20240921
["ID","MTS","AMOUNT","RATE_DAILY","PERIOD"]
[338824945,1726929043265,-1062.81,0.00014026,2]
[338824946,1726929043274,-500.0,0.00014026,2]
[338824947,1726929043284,-500.0,0.00014026,2]
[338824948,1726929043293,-500.0,0.00014026,2]
[338824949,1726929043302,-335.60657951,0.00014026,2]
[338824950,1726929043312,-500.0,0.00014026,2]
[338824951,1726929043321,-500.0,0.00014026,2]
[338824952,1726929043331,-500.0,0.00014026,2]
[338824953,1726929043340,-500.0,0.00014026,2]
[338824954,1726929043349,-500.0,0.00014026,2]
[338824955,1726929043359,-500.0,0.00014026,2]
[338824956,1726929043368,-500.0,0.00014026,2]
[338824957,1726929043377,-500.0,0.00014026,2]
[338824958,1726929043387,-500.99201042,0.00014026,2]
[338824959,1726929043396,-500.0,0.00014026,2]
[338824960,1726929043405,-500.0,0.00014026,2]
[338824961,1726929043414,-500.0,0.00014026,2]
[338824962,1726929043423,-500.0,0.00014026,2]
[338824963,1726929043433,-500.0,0.00014026,2]
[338824964,1726929043442,-500.0,0.00014026,2]
[338824965,1726929043451,-500.0,0.00014026,2]
[338824966,1726929043461,-500.0,0.00014026,2]
[338824967,1726929043470,-500.0,0.00014026,2]
[338824968,1726929043480,-500.0,0.00014026,2]
[338824969,1726929043489,-529.39340058,0.00014026,2]
[338824970,1726929043499,-500.0,0.00014026,2]
[338824971,1726929043509,-500.0,0.00014026,2]
[338824972,1726929043519,-500.0,0.00014026,2]
[338824973,1726929043528,-500.0,0.00014026,2]
[338824974,1726929043537,-500.0,0.00014026,2]
[338824975,1726929043547,-500.0,0.00014026,2]
[338824976,1726929043557,-732.15,0.00014026,2]
[338824977,1726929043568,-415.66945261,0.00014026,2]
[338824978,1726929043577,-500.0,0.00014026,2]
[338824979,1726929043586,-500.0,0.00014026,2]
[338824980,1726929043595,-500.0,0.00014026,2]
[338824981,1726929043604,-500.0,0.00014026,2]
[338824982,1726929043613,-500.0,0.00014026,2]
[338824983,1726929043623,-500.0,0.00014026,2]
[338824984,1726929043632,-500.0,0.00014026,2]
[338824985,1726929043641,-627.24465092,0.00014026,2]
[338824986,1726929043651,-500.0,0.00014026,2]
[338824987,1726929043660,-500.0,0.00014026,2]
[338824988,1726929043669,-500.0,0.00014026,2]
[338824989,1726929043678,-500.36331924,0.00014026,2]
[338824990,1726929043687,-500.0,0.00014026,2]
[338824991,1726929043696,-500.0,0.00014026,2]
[338824992,1726929043706,-500.0,0.00014026,2]
[338824993,1726929043715,-500.0,0.00014026,2]
[338824994,1726929043724,-500.0,0.00014026,2]
[338824995,1726929043733,-590.08981235,0.00014026,2]
[338824996,1726929043743,-500.0,0.00014026,2]
[338824997,1726929043752,-500.0,0.00014026,2]
[338824998,1726929043761,-500.0,0.00014026,2]
[338824999,1726929043774,-500.0,0.00014026,2]
[338825000,1726929043784,-378.31421143,0.00014026,2]
[338825001,1726929043793,-500.0,0.00014026,2]
[338825002,1726929043802,-500.0,0.00014026,2]
[338825003,1726929043813,-500.0,0.00014026,2]
[338825004,1726929043823,-500.0,0.00014026,2]
[338825005,1726929043832,-500.0,0.00014026,2]
[338825006,1726929043841,-500.0,0.00014026,2]
[338825007,1726929043852,-500.0,0.00014026,2]
[338825008,1726929043863,-500.0,0.00014026,2]
[338825009,1726929043872,-500.0,0.00014026,2]
[338825010,1726929043881,-500.0,0.00014026,2]
[338825011,1726929043891,-500.0,0.00014026,2]
[338825012,1726929043900,-408.64667403,0.00014026,2]
[338825013,1726929043909,-500.0,0.00014026,2]
[338825014,1726929043919,-500.0,0.00014026,2]
[338825015,1726929043929,-200.0,0.00014027,2]
[338825016,1726929043939,-500.0,0.00014027,2]
[338825017,1726929043948,-500.0,0.00014027,2]
[338825018,1726929043957,-500.0,0.00014027,2]
[338825019,1726929043967,-500.0,0.00014027,2]
[338825020,1726929043976,-500.0,0.00014027,2]
[338825021,1726929043985,-500.0,0.00014027,2]
[338825022,1726929043994,-500.0,0.00014027,2]
[338825023,1726929044003,-500.0,0.00014028,2]
[338825024,1726929044012,-493.26750583,0.00014029,2]
[338825025,1726929044024,-500.0,0.00014029,2]
[338825026,1726929044034,-500.0,0.00014029,2]
[338825027,1726929044044,-500.0,0.00014029,2]
[338825028,1726929044053,-500.0,0.00014029,2]
[338825029,1726929044063,-500.0,0.00014029,2]
[338825030,1726929044073,-500.0,0.00014029,2]
[338825031,1726929044082,-500.0,0.00014029,2]
[338825032,1726929044091,-309.14842164,0.00014029,2]
[338825033,1726929044102,-500.0,0.00014037,2]
[338825034,1726929044114,-500.0,0.00014037,2]
[338825035,1726929044124,-500.0,0.00014037,2]
[338825036,1726929044134,-500.0,0.00014037,2]
[338825037,1726929044145,-500.0,0.00014037,2]
[338825038,1726929044155,-500.0,0.00014037,2]
[338825039,1726929044164,-500.0,0.00014037,2]
[338825040,1726929044173,-500.0,0.00014037,2]
[338825041,1726929044182,-500.0,0.00014037,2]
[338825042,1726929044191,-184.54185005,0.00014037,2]
[338825043,1726929044201,-157.20338816,0.00014037,2]
[338825044,1726929044212,-512.37431689,0.00014037,2]
[338825045,1726929044222,-500.0,0.00014037,2]
[338825046,1726929044231,-500.0,0.00014037,2]
[338825047,1726929044241,-500.0,0.00014038,2]
[338825048,1726929044251,-150.112233,0.000141,2]
[338825049,1726929044260,-150.112233,0.000141,2]
[338825050,1726929044270,-150.112233,0.000142,2]
[338825051,1726929044279,-150.112233,0.000142,2]
[338825052,1726929044288,-500.32467203,0.00014273,2]
[338825053,1726929044297,-500.0,0.00014273,2]
[338825054,1726929044308,-500.0,0.00014273,2]
[338825055,1726929044318,-324.79395415,0.00014273,2]
[338825056,1726929044330,-500.0,0.00014273,2]
[338825057,1726929044340,-500.52186912,0.00014273,2]
[338825058,1726929044350,-500.72022234,0.00014273,2]
[338825059,1726929044359,-500.0,0.00014273,2]
[338825060,1726929044368,-500.0,0.00014273,2]
[338825061,1726929044377,-500.0,0.00014273,2]
[338825062,1726929044387,-500.0,0.00014273,2]
[338825063,1726929044395,-199.72750327,0.00014273,2]
[338825064,1726929044406,-500.0,0.00014273,2]
[338825065,1726929044416,-500.0,0.00014273,2]
[338825066,1726929044426,-500.0,0.00014273,2]
[338825067,1726929044436,-500.0,0.00014287,2]
[338825068,1726929044447,-500.0,0.00014289,2]
[338825069,1726929044457,-500.0,0.00014289,2]
[338825070,1726929044466,-621.91,0.00014289,2]
[338825071,1726929044476,-16619.96,0.00014289,2]
[338825072,1726929044486,-2586.61,0.00014289,2]
[338825073,1726929044498,-500.0,0.00014289,2]
[338825074,1726929044508,-500.0,0.00014289,2]
[338825075,1726929044518,-500.0,0.00014289,2]
[338825076,1726929044528,-500.0,0.00014289,2]
[338825077,1726929044540,-500.0,0.00014298,2]
[338825078,1726929044551,-545.13,0.00014298,2]
[338825079,1726929044562,-500.0,0.00014299,2]
[338825080,1726929044571,-586.87,0.00014299,2]
[338825081,1726929044580,-516.84,0.00014299,2]
[338825082,1726929044590,-500.0,0.00014299,2]
[338825083,1726929044599,-500.0,0.00014299,2]
[338825084,1726929044608,-500.0,0.00014299,2]
[338825085,1726929044618,-500.0,0.00014299,2]
[338825086,1726929044627,-500.0,0.00014299,2]
[338825087,1726929044637,-500.0,0.00014299,2]
[338825088,1726929044648,-500.0,0.00014299,2]
[338825089,1726929044658,-500.0,0.00014299,2]
[338825090,1726929044667,-500.0,0.00014299,2]
[338825091,1726929044677,-500.0,0.00014299,2]
[338825092,1726929044686,-500.0,0.00014299,2]
[338825093,1726929044696,-500.0,0.00014299,2]
[338825094,1726929044706,-540.81,0.00014299,2]
[338825095,1726929044715,-500.0,0.00014299,2]
[338825096,1726929044724,-500.0,0.00014299,2]
[338825097,1726929044735,-500.0,0.00014299,2]
[338825098,1726929044745,-500.0,0.00014299,2]
[338825099,1726929044754,-500.0,0.00014299,2]
[338825100,1726929044765,-500.0,0.00014299,2]
[338825101,1726929044775,-1068.46,0.00014299,2]
[338825102,1726929044785,-500.0,0.00014299,2]
[338825103,1726929044794,-599.25245421,0.00014299,2]
[338825104,1726929044803,-500.0,0.00014299,2]
[338825105,1726929044816,-373.48159648,0.00014299,2]
[338825106,1726929044825,-531.88,0.00014299,2]
[338825107,1726929044836,-500.0,0.00014299,2]
[338825108,1726929044847,-526.93644193,0.00014299,2]
[338825109,1726929044857,-227.93495992,0.00014299,2]
[338825110,1726929044866,-348.33173401,0.00014299,2]
[338825111,1726929044877,-500.0,0.00014299,2]
[338825112,1726929044889,-500.0,0.00014299,2]
[338825113,1726929044899,-500.0,0.00014299,2]
[338825114,1726929044909,-500.0,0.00014299,2]
[338825115,1726929044920,-500.0,0.00014299,2]
[338825116,1726929044932,-481.58,0.00014299,2]
[338825117,1726929044943,-345.15712558,0.00014299,2]
[338825118,1726929044952,-500.0,0.00014299,2]
[338825119,1726929044961,-601.82720782,0.00014299,2]
[338825120,1726929044970,-529.96,0.00014299,2]
[338825121,1726929045020,-500.0,0.00014299,2]
[338825122,1726929045031,-780.6,0.00014299,2]
[338825123,1726929045041,-500.0,0.00014299,2]
[338825124,1726929045050,-500.0,0.00014299,2]
[338825125,1726929045060,-500.0,0.00014299,2]
[338825126,1726929045069,-500.0,0.00014299,2]
[338825127,1726929045079,-500.0,0.00014299,2]
[338825128,1726929045088,-500.0,0.00014299,2]
[338825129,1726929045097,-500.0,0.00014299,2]
[338825130,1726929045106,-500.0,0.00014299,2]
[338825131,1726929045115,-384.53031725,0.00014299,2]
[338825132,1726929045124,-500.0,0.00014299,2]
[338825133,1726929045133,-670.71,0.00014299,2]
[338825134,1726929045142,-500.0,0.00014299,2]
[338825135,1726929045151,-500.0,0.000143,2]
[338825136,1726929045160,-500.0,0.000143,2]
[338825137,1726929045169,-500.0,0.000143,2]
[338825138,1726929045179,-500.0,0.000143,2]
[338825139,1726929045188,-500.0,0.000143,2]
[338825140,1726929045197,-500.0,0.000143,2]
[338825141,1726929045206,-500.0,0.000143,2]
[338825142,1726929045215,-500.0,0.000143,2]
[338825143,1726929045223,-500.0,0.000143,2]
[338825144,1726929045232,-578.56,0.000143,2]
[338825145,1726929045242,-418.76433122,0.000143,2]
[338825146,1726929045251,-500.0,0.000143,2]
[338825147,1726929045260,-500.0,0.000143,2]
[338825148,1726929045269,-500.0,0.000143,2]
[338825149,1726929045279,-557.30214004,0.000143,2]
[338825150,1726929045287,-500.0,0.000143,2]
[338825151,1726929045296,-500.0,0.000143,2]
[338825152,1726929045306,-500.0,0.000143,2]
[338825153,1726929045316,-500.0,0.000143,2]
[338825154,1726929045325,-500.0,0.000143,2]
[338825155,1726929045333,-460.35283347,0.000143,2]
[338825156,1726929045343,-500.0,0.000143,2]
[338825157,1726929045352,-500.0,0.000143,2]
[338825158,1726929045362,-500.0,0.000143,2]
[338825159,1726929045371,-500.0,0.000143,2]
[338825160,1726929045380,-500.0,0.000143,2]
[338825161,1726929045389,-500.0,0.000143,2]
[338825162,1726929045398,-500.0,0.000143,2]
[338825163,1726929045407,-500.0,0.000143,2]
[338825164,1726929045416,-500.0,0.000143,2]
[338825165,1726929045425,-500.0,0.000143,2]
[338825166,1726929045434,-243.75288641,0.000143,2]
[338825167,1726929045443,-500.0,0.000143,2]
[338825168,1726929045452,-500.0,0.000143,2]
[338825169,1726929045462,-500.0,0.000143,2]
[338825170,1726929045471,-500.0,0.000143,2]
[338825171,1726929045481,-500.0,0.000143,2]
[338825172,1726929045490,-500.0,0.000143,2]
[338825173,1726929045499,-500.0,0.000143,2]
[338825174,1726929045512,-632.05933359,0.000143,2]
[338825175,1726929045522,-500.0,0.000143,2]
[338825176,1726929045531,-500.0,0.000143,2]
[338825178,1726929045541,-500.0,0.000143,2]
[338825180,1726929045550,-500.0,0.000143,2]
[338825181,1726929045560,-500.0,0.000143,2]
[338825182,1726929045569,-500.0,0.000143,2]
[338825183,1726929045578,-500.0,0.000143,2]
[338825184,1726929045588,-500.0,0.000143,2]
[338825185,1726929045598,-500.0,0.000143,2]
[338825186,1726929045607,-500.0,0.000143,2]
[338825188,1726929045616,-500.0,0.000143,2]
[338825189,1726929045625,-500.0,0.000143,2]
[338825190,1726929045634,-500.0,0.000143,2]
[338825192,1726929045644,-500.0,0.000143,2]
[338825193,1726929045653,-500.0,0.000143,2]
[338825195,1726929045662,-500.0,0.000143,2]
[338825196,1726929045671,-503.3653671,0.000143,2]
[338825197,1726929045680,-500.0,0.000143,2]
[338825198,1726929045689,-500.0,0.000143,2]
[338825199,1726929045698,-503.32291809,0.000143,2]
[338825201,1726929045707,-500.0,0.000143,2]
[338825203,1726929045717,-500.0,0.000143,2]
[338825205,1726929045726,-500.0,0.000143,2]
[338825207,1726929045735,-500.0,0.000143,2]
[338825209,1726929045744,-500.0,0.000143,2]
[338825210,1726929045753,-150.112233,0.000143,2]
[338825211,1726929045762,-247.28098613,0.000143,2]
[338825213,1726929045774,-500.0,0.000143,2]
[338825215,1726929045783,-500.0,0.000143,2]
[338825217,1726929045793,-500.0,0.000143,2]
[338825219,1726929045802,-936.3,0.000143,2]
[338825221,1726929045811,-500.0,0.000143,2]
[338825223,1726929045821,-500.0,0.000143,2]
[338825225,1726929045831,-500.0,0.000143,2]
[338825227,1726929045841,-562.61,0.000143,2]
[338825229,1726929045850,-500.0,0.000143,2]
[338825231,1726929045860,-500.0,0.000143,2]
[338825233,1726929045869,-500.0,0.000143,2]
[338825235,1726929045878,-500.0,0.000143,2]
[338825237,1726929045887,-500.0,0.000143,2]
[338825239,1726929045896,-596.97,0.000143,2]
[338825241,1726929045905,-651.56,0.000143,2]
[338825243,1726929045915,-500.0,0.000143,2]
[338825245,1726929045924,-500.0,0.000143,2]
[338825247,1726929045933,-500.0,0.000143,2]
[338825248,1726929045943,-500.0,0.000143,2]
[338825250,1726929045952,-500.0,0.000143,2]
[338825252,1726929045962,-500.0,0.000143,2]
[338825254,1726929045971,-500.0,0.000143,2]
[338825256,1726929045980,-500.0,0.000143,2]
[338825258,1726929045990,-500.0,0.000143,2]
[338825260,1726929045999,-679.5,0.000143,2]
[338825262,1726929046008,-500.0,0.000143,2]
[338825264,1726929046017,-169.32233652,0.000143,2]
[338825266,1726929046025,-500.0,0.000143,2]
[338825268,1726929046034,-548.48,0.000143,2]
[338825270,1726929046045,-500.0,0.000143,2]
[338825271,1726929046054,-500.0,0.000143,2]
[338825274,1726929046066,-500.0,0.000143,2]
[338825276,1726929046076,-1062.81,0.000143,2]
[338825278,1726929046085,-605.89959351,0.000143,2]
[338825280,1726929046094,-88611.14036414,0.000143,2]
[338825282,1726929046103,-500.0,0.000143,2]
[338825284,1726929046114,-500.0,0.000143,2]
[338825286,1726929046126,-265.99,0.000143,2]
[338825288,1726929046136,-500.0,0.000143,2]
[338825290,1726929046146,-500.0,0.000143,2]
[338825293,1726929046156,-500.0,0.000143,2]
[338825295,1726929046166,-626.86672932,0.000143,2]
[338825297,1726929046177,-500.0,0.000143,2]
[338825299,1726929046186,-500.0,0.000143,2]
[338825301,1726929046195,-500.0,0.000143,2]
[338825303,1726929046204,-500.0,0.000143,2]
[338825305,1726929046213,-500.0,0.000143,2]
[338825307,1726929046223,-500.0,0.000143,2]
[338825309,1726929046234,-500.0,0.000143,2]
[338825311,1726929046245,-732.15,0.000143,2]
[338825313,1726929046254,-500.0,0.000143,2]
[338825315,1726929046265,-530.30953794,0.000143,2]
[338825317,1726929046274,-501.60560376,0.000143,2]
[338825319,1726929046284,-500.0,0.000143,2]
[338825321,1726929046293,-500.0,0.000143,2]
[338825323,1726929046303,-500.0,0.000143,2]
[338825324,1726929046312,-500.0,0.000143,2]
[338825326,1726929046321,-500.0,0.000143,2]
[338825328,1726929046331,-500.0,0.000143,2]
[338825331,1726929046341,-571.17241894,0.000143,2]
[338825333,1726929046351,-500.0,0.000143,2]
[338825335,1726929046362,-511.95,0.000143,2]
[338825337,1726929046371,-500.0,0.000143,2]
[338825339,1726929046380,-500.0,0.000143,2]
[338825340,1726929046389,-500.0,0.000143,2]
[338825342,1726929046398,-500.0,0.000143,2]
[338825345,1726929046410,-500.0,0.000143,2]
[338825347,1726929046420,-418.45,0.000143,2]
[338825349,1726929046431,-500.0,0.000143,2]
[338825351,1726929046441,-500.0,0.000143,2]
[338825353,1726929046450,-500.0,0.000143,2]
[338825355,1726929046459,-500.0,0.000143,2]
[338825357,1726929046469,-500.0,0.000143,2]
[338825359,1726929046478,-249.6,0.000143,2]
[338825361,1726929046488,-200.0,0.00014301,2]
[338825363,1726929046497,-500.0,0.00014301,2]
[338825365,1726929046506,-500.0,0.00014301,2]
[338825367,1726929046515,-500.0,0.00014301,2]
[338825368,1726929046524,-500.0,0.00014302,2]
[338825370,1726929046534,-500.0,0.00014311,2]
[338825372,1726929046543,-500.0,0.00014311,2]
[338825375,1726929046553,-307.69781721,0.00014345,2]
[338825377,1726929046563,-160.0,0.00014345,2]
[338825379,1726929046572,-160.0,0.00014345,2]
[338825381,1726929046582,-150.112233,0.000144,2]
[338825383,1726929046591,-150.112233,0.000144,2]
[338825385,1726929046601,-150.112233,0.000145,2]
[338825387,1726929046611,-150.112233,0.000145,2]
[338825389,1726929046620,-500.0,0.00014561,2]
[338825391,1726929046629,-500.0,0.00014563,2]
[338825393,1726929046638,-500.0,0.00014563,2]
[338825395,1726929046648,-621.91,0.00014563,2]
[338825397,1726929046658,-16619.96,0.00014563,2]
[338825399,1726929046668,-2586.61,0.00014563,2]
[338825401,1726929046677,-391.22,0.00014563,2]
[338825403,1726929046687,-529.59,0.00014563,2]
[338825405,1726929046696,-500.0,0.00014563,2]
[338825407,1726929046706,-500.0,0.00014572,2]
[338825409,1726929046715,-545.13,0.00014572,2]
[338825411,1726929046725,-500.0,0.00014573,2]
[338825413,1726929046735,-586.87,0.00014573,2]
[338825415,1726929046744,-516.84,0.00014573,2]
[338825417,1726929046754,-506.86662193,0.00014573,2]
[338825419,1726929046763,-500.0,0.00014573,2]
[338825422,1726929046776,-500.0,0.00014573,2]
[338825424,1726929046786,-500.0,0.00014573,2]
[338825426,1726929046795,-500.0,0.00014573,2]
[338825428,1726929046805,-500.0,0.00014573,2]
[338825430,1726929046815,-500.0,0.00014573,2]
[338825432,1726929046824,-500.0,0.00014573,2]
[338825434,1726929046834,-500.0,0.00014573,2]
[338825436,1726929046844,-337.36,0.00014573,2]
[338825438,1726929046853,-500.0,0.00014573,2]
[338825440,1726929046863,-500.0,0.00014573,2]
[338825442,1726929046872,-260.84554324,0.00014573,2]
[338825444,1726929046881,-1068.46,0.00014573,2]
[338825446,1726929046891,-531.88,0.00014573,2]
[338825448,1726929046900,-500.0,0.00014573,2]
[338825450,1726929046909,-500.0,0.00014573,2]
[338825452,1726929046919,-500.0,0.00014573,2]
[338825454,1726929046929,-500.0,0.00014573,2]
[338825456,1726929046940,-500.0,0.00014573,2]
[338825457,1726929046950,-500.0,0.00014573,2]
[338825459,1726929046959,-500.0,0.00014573,2]
[338825461,1726929046968,-500.0,0.00014573,2]
[338825463,1726929046978,-780.6,0.00014573,2]
[338825465,1726929046987,-500.0,0.00014573,2]
[338825467,1726929046996,-500.0,0.00014573,2]
[338825469,1726929047006,-500.0,0.00014573,2]
[338825471,1726929047015,-500.0,0.00014573,2]
[338825472,1726929047024,-232.17878893,0.00014573,2]
[338825474,1726929047033,-500.0,0.00014573,2]
[338825476,1726929047043,-500.0,0.00014573,2]
[338825477,1726929047052,-500.0,0.00014573,2]
[338825478,1726929047062,-670.71,0.00014573,2]
[338825479,1726929047071,-500.0,0.00014573,2]
[338825480,1726929047080,-500.0,0.00014574,2]
[338825481,1726929047089,-500.0,0.00014574,2]
[338825482,1726929047099,-578.56,0.00014574,2]
[338825483,1726929047108,-500.0,0.00014574,2]
[338825484,1726929047117,-500.0,0.00014574,2]
[338825485,1726929047127,-277.17657893,0.00014574,2]
[338825486,1726929047138,-500.0,0.00014574,2]
[338825487,1726929047148,-500.0,0.00014574,2]
[338825488,1726929047158,-500.0,0.00014574,2]
[338825489,1726929047167,-500.0,0.00014574,2]
[338825490,1726929047177,-500.0,0.00014574,2]
[338825491,1726929047187,-500.0,0.00014574,2]
[338825492,1726929047196,-500.0,0.00014574,2]
[338825493,1726929047205,-500.0,0.00014574,2]
[338825494,1726929047215,-500.0,0.00014574,2]
[338825495,1726929047224,-500.0,0.00014574,2]
[338825496,1726929047234,-500.0,0.00014574,2]
[338825497,1726929047243,-500.0,0.00014574,2]
[338825498,1726929047253,-500.0,0.00014574,2]
[338825499,1726929047262,-500.0,0.00014574,2]
[338825500,1726929047271,-500.0,0.00014574,2]
[338825501,1726929047281,-500.0,0.00014574,2]
[338825502,1726929047291,-936.3,0.00014574,2]
[338825503,1726929047301,-500.0,0.00014574,2]
[338825504,1726929047314,-500.0,0.00014574,2]
[338825505,1726929047324,-562.61,0.00014574,2]
[338825506,1726929047338,-256.57060773,0.00014574,2]
[338825507,1726929047347,-500.0,0.00014574,2]
[338825508,1726929047356,-500.0,0.00014574,2]
[338825509,1726929047366,-596.97,0.00014574,2]
[338825510,1726929047375,-651.56,0.00014574,2]
[338825511,1726929047385,-500.0,0.00014574,2]
[338825512,1726929047394,-500.0,0.00014574,2]
[338825513,1726929047404,-500.0,0.00014574,2]
[338825514,1726929047414,-500.0,0.00014574,2]
[338825515,1726929047425,-500.0,0.00014574,2]
[338825516,1726929047437,-500.0,0.00014574,2]
[338825517,1726929047448,-500.0,0.00014574,2]
[338825518,1726929047458,-679.5,0.00014574,2]
[338825519,1726929047468,-156.44103273,0.00014574,2]
[338825520,1726929047482,-505.18049513,0.00014574,2]
[338825521,1726929047492,-500.0,0.00014574,2]
[338825522,1726929047501,-500.0,0.00014574,2]
[338825523,1726929047512,-1062.81,0.00014574,2]
[338825524,1726929047522,-500.0,0.00014574,2]
[338825525,1726929047532,-500.0,0.00014574,2]
[338825526,1726929047541,-500.0,0.00014574,2]
[338825527,1726929047550,-500.0,0.00014574,2]
[338825528,1726929047560,-500.0,0.00014574,2]
[338825529,1726929047573,-502.69070751,0.00014574,2]
[338825530,1726929047582,-500.0,0.00014574,2]
[338825531,1726929047592,-500.0,0.00014574,2]
[338825532,1726929047602,-500.0,0.00014574,2]
[338825533,1726929047611,-500.0,0.00014574,2]
[338825534,1726929047621,-732.15,0.00014574,2]
[338825535,1726929047631,-500.0,0.00014574,2]
[338825536,1726929047640,-500.0,0.00014574,2]
[338825537,1726929047649,-500.0,0.00014574,2]
[338825538,1726929047659,-500.0,0.00014574,2]
[338825539,1726929047669,-500.0,0.00014574,2]
[338825540,1726929047679,-337.95285531,0.00014574,2]
[338825541,1726929047689,-500.0,0.00014574,2]
[338825542,1726929047698,-447.04252525,0.00014574,2]
[338825543,1726929047708,-500.0,0.00014574,2]
[338825544,1726929047717,-500.0,0.00014574,2]
[338825545,1726929047727,-500.0,0.00014574,2]
[338825546,1726929047737,-500.0,0.00014574,2]
[338825547,1726929047746,-500.0,0.00014574,2]
[338825548,1726929047755,-500.0,0.00014574,2]
[338825549,1726929047766,-500.0,0.00014574,2]
[338825550,1726929047781,-500.0,0.00014574,2]
[338825551,1726929047791,-503.12360472,0.00014574,2]
[338825552,1726929047802,-229.8,0.00014575,2]
[338825553,1726929047813,-307.44682849,0.00014575,2]
[338825554,1726929047824,-500.0,0.00014575,2]
[338825555,1726929047834,-600.0,0.00014578,2]
[338825556,1726929047844,-500.0,0.00014585,2]
[338825557,1726929047855,-160.0,0.00014619,2]
[338825558,1726929047865,-1118.43,0.000148,2]
[338825559,1726929047874,-500.0,0.00014835,2]
[338825560,1726929047884,-500.0,0.00014837,2]
[338825561,1726929047894,-500.0,0.00014837,2]
[338825562,1726929047903,-621.91,0.00014837,2]
[338825563,1726929047914,-16619.96,0.00014837,2]
[338825564,1726929047923,-2586.61,0.00014837,2]
[338825565,1726929047935,-193.07,0.00014837,2]
[338825566,1726929047945,-500.0,0.00014846,2]
[338825567,1726929047955,-545.13,0.00014846,2]
[338825568,1726929047965,-500.0,0.00014847,2]
[338825569,1726929047974,-586.87,0.00014847,2]
[338825570,1726929047983,-516.84,0.00014847,2]
[338825571,1726929047994,-500.0,0.00014847,2]
[338825572,1726929048004,-500.0,0.00014847,2]
[338825573,1726929048013,-500.0,0.00014847,2]
[338825574,1726929048023,-500.0,0.00014847,2]
[338825575,1726929048034,-500.0,0.00014847,2]
[338825576,1726929048043,-500.0,0.00014847,2]
[338825577,1726929048053,-500.0,0.00014847,2]
[338825578,1726929048063,-500.0,0.00014847,2]
[338825579,1726929048072,-500.0,0.00014847,2]
[338825580,1726929048082,-500.0,0.00014847,2]
[338825581,1726929048092,-1068.46,0.00014847,2]
[338825582,1726929048102,-531.88,0.00014847,2]
[338825583,1726929048112,-500.0,0.00014847,2]
[338825584,1726929048123,-500.0,0.00014847,2]
[338825585,1726929048132,-500.0,0.00014847,2]
[338825586,1726929048142,-500.0,0.00014847,2]